bitfinex-derivatives/quotes_ETHF0:USTF0_20260316
["timestamp","ask_amount","ask_price","bid_price","bid_amount"]
[1773642546834,7.97269684,2266.8,2265.9,11.013]
[1773642547633,7.97269684,2266.8,2265.8,0.9735524]
[1773642547829,7.97269684,2266.8,2265.9,10.959]
[1773642549133,7.97269684,2266.8,2265.5,2.39343035]
[1773642549333,7.97269684,2266.8,2265.6,10.955]
[1773642549525,7.97269684,2266.8,2265.6,15.96731706]
[1773642550534,7.97269684,2266.8,2265.7,0.22067]
[1773642551635,7.97269684,2266.8,2265.9,0.9735524]
[1773642551831,7.97269684,2266.8,2266.0,10.957]
[1773642552732,7.97269684,2266.8,2266.2,0.97321527]
[1773642553134,7.97269684,2266.8,2266.4,0.97321527]
[1773642553333,4.18126092,2266.8,2266.4,4.65605556]
[1773642554638,4.18126092,2266.8,2266.2,0.97321527]
[1773642554829,4.18126092,2266.8,2266.2,4.88496987]
[1773642555035,4.18126092,2266.8,2266.4,3.9117546]
[1773642555235,4.18126092,2266.8,2266.3,14.9077546]
[1773642556034,4.18126092,2266.8,2266.3,10.996]
[1773642556435,4.18126092,2266.8,2266.2,11.011]
[1773642558535,4.18126092,2266.8,2266.3,0.97321527]
[1773642558739,4.18126092,2266.8,2266.3,4.85363342]
[1773642559435,4.18126092,2266.8,2266.3,0.97321527]
[1773642561138,4.18126092,2266.8,2266.2,14.88240399]
[1773642561634,4.18126092,2266.8,2266.2,3.87140399]
[1773642561840,4.18126092,2266.8,2266.3,11.05]
[1773642563341,4.18126092,2266.8,2266.3,14.89744537]
[1773642565835,4.18126092,2266.8,2266.3,11.05]
[1773642566042,4.18126092,2266.8,2266.4,11.072]
[1773642567241,4.18126092,2266.8,2265.9,0.97321527]
[1773642567434,7.59411057,2266.3,2265.7,3.95941794]
[1773642567740,6.8772141,2266.3,2265.8,15.53464441]
[1773642568742,6.8772141,2266.3,2265.9,11.083]
[1773642570042,6.8772141,2266.3,2266.0,11.089]
[1773642573447,6.8772141,2266.3,2265.8,4.33974744]
[1773642573448,6.8772141,2266.3,2265.8,11.103]
[1773642573838,7.59411057,2266.1,2265.6,4.33974744]
[1773642574037,0.97321527,2266.5,2265.3,0.97321527]
[1773642574038,7.59411057,2265.9,2265.3,4.32372581]
[1773642574241,7.59411057,2265.9,2265.5,11.106]
[1773642574843,7.59411057,2265.7,2265.3,4.32372581]
[1773642575038,7.59411057,2265.7,2265.4,11.109]
[1773642575549,7.59411057,2265.7,2265.5,7.94567301]
[1773642575748,7.59411057,2265.7,2265.5,3.8529227]
[1773642575949,7.59411057,2265.5,2265.2,0.00392362]
[1773642577746,7.59411057,2265.3,2264.9,7.82514585]
[1773642578449,7.59411057,2265.8,2265.2,7.82514585]
[1773642578647,7.59411057,2265.8,2265.2,7.82826791]
[1773642578950,7.59411057,2265.8,2265.4,7.82514585]
[1773642579149,7.59411057,2265.8,2265.3,18.94914585]
[1773642579541,7.59411057,2265.8,2265.3,11.124]
[1773642579944,7.59411057,2265.8,2265.3,18.94914585]
[1773642580541,7.59411057,2265.8,2265.4,7.82514585]
[1773642580747,7.59411057,2266.2,2265.4,7.82514585]
[1773642580947,7.59411057,2266.0,2265.4,7.82514585]
[1773642584154,7.59411057,2266.0,2265.5,11.144]
[1773642584752,7.59411057,2266.0,2265.4,7.82514585]
[1773642584953,7.59411057,2266.0,2265.5,11.146]
[1773642585949,7.59411057,2266.0,2265.4,7.82514585]
[1773642586156,7.59411057,2266.0,2265.5,11.15]
[1773642588354,7.59411057,2266.0,2265.5,18.97514585]
[1773642588553,7.59411057,2266.0,2265.6,7.82514585]
[1773642589450,8.56732584,2266.1,2265.6,7.82514585]
[1773642589654,7.59411057,2266.1,2265.6,7.82514585]
[1773642589854,8.56732584,2266.1,2265.6,7.82514585]
[1773642590054,8.56732584,2266.1,2265.5,11.15]
[1773642590553,8.56732584,2266.1,2265.4,7.82514585]
[1773642590755,8.56732584,2266.1,2265.6,11.166]
[1773642590957,8.56732584,2266.1,2265.4,7.82514585]
[1773642591156,8.56732584,2266.1,2265.5,11.167]
[1773642591856,8.56732584,2266.1,2265.3,7.82514585]
[1773642592055,8.56732584,2266.1,2265.5,11.17]
[1773642592956,8.56732584,2266.1,2265.5,11.173]
[1773642593255,7.90361212,2265.8,2265.2,18.6747213]
[1773642593450,7.90361212,2265.8,2265.3,7.49759924]
[1773642593655,7.90361212,2265.8,2265.4,18.67259924]
[1773642594359,7.90361212,2265.9,2265.5,7.49759924]
[1773642594559,0.97321527,2266.3,2265.5,7.49759924]
[1773642594560,7.90361212,2266.2,2265.5,7.49759924]
[1773642598559,7.90361212,2266.2,2265.4,11.175]
[1773642598760,7.80781976,2266.4,2265.6,7.87413764]
[1773642598961,7.80781976,2266.2,2265.6,7.87413764]
[1773642599355,7.80781976,2266.2,2265.6,19.06713764]
[1773642600563,7.80781976,2266.2,2265.7,7.87413764]
[1773642600764,7.87221426,2267.0,2266.0,7.87413764]
[1773642600765,7.80781976,2266.6,2266.0,7.87413764]
[1773642600955,7.80781976,2266.6,2266.1,7.87413764]
[1773642601367,7.81155091,2266.8,2266.1,8.84735291]
[1773642601863,7.80781976,2267.0,2266.5,0.97321527]
[1773642602056,7.80781976,2267.4,2266.7,7.87413764]
[1773642602365,7.80781976,2267.2,2266.7,7.87413764]
[1773642602762,7.80781976,2267.2,2266.7,8.84735291]
[1773642602962,7.81288642,2267.2,2266.7,8.84735291]
[1773642603758,7.81288642,2267.2,2266.6,11.202]
[1773642604467,7.81288642,2267.2,2266.6,19.07613764]
[1773642604768,7.81288642,2267.2,2266.7,8.84735291]
[1773642605266,7.80781976,2266.9,2266.1,8.84735291]
[1773642605465,7.80781976,2266.9,2266.2,19.08513764]
[1773642605859,7.80781976,2266.9,2266.3,11.212]
[1773642606567,7.80781976,2266.9,2266.3,19.08613764]
[1773642606765,7.80781976,2266.9,2266.4,8.84735291]
[1773642607165,7.80781976,2266.9,2266.1,8.84735291]
[1773642607363,7.80781976,2266.9,2266.2,7.87413764]
[1773642609359,7.80781976,2266.9,2266.3,19.09613764]
[1773642609565,7.80781976,2266.9,2266.4,19.09713764]
[1773642609868,7.81288642,2267.2,2266.8,7.87413764]
[1773642610063,7.81288642,2267.2,2266.8,7.87789326]
[1773642614575,7.80781976,2267.5,2266.8,7.87789326]
[1773642614968,7.80781976,2267.5,2266.8,0.00375562]
[1773642615471,7.81317146,2267.5,2266.8,0.00375562]
[1773642620377,7.81317146,2267.5,2266.8,7.87789326]
[1773642621176,7.81317146,2267.5,2266.8,0.00375562]
[1773642623983,7.81317146,2267.5,2266.4,7.8346067]
[1773642624182,7.07646925,2267.1,2266.3,18.9426067]
[1773642624780,7.07646925,2266.9,2266.1,18.9336067]
[1773642624979,7.07646925,2266.9,2266.1,7.83990637]
[1773642626481,7.07646925,2266.9,2266.1,0.00529967]
[1773642627781,7.07646925,2266.9,2266.1,7.83990637]
[1773642628183,5.66765314,2266.8,2266.1,7.83990637]
[1773642628382,7.07646925,2266.7,2265.9,7.8346067]
[1773642628583,7.07646925,2266.7,2265.8,7.8346067]
[1773642628788,7.07646925,2266.7,2265.6,11.098]
[1773642628789,5.66605424,2266.6,2265.6,11.098]
[1773642629087,7.07646925,2266.5,2265.5,7.8346067]
[1773642629288,7.07646925,2266.3,2265.5,7.8346067]
[1773642629487,7.07646925,2266.3,2265.5,7.83817252]
[1773642639694,7.07646925,2266.8,2265.5,7.83817252]
[1773642641096,7.29203794,2266.8,2265.5,7.83817252]
[1773642642192,7.07646925,2266.8,2265.5,8.05885252]
[1773642643396,7.07646925,2266.8,2265.7,7.8346067]
[1773642652000,7.07646925,2266.8,2265.7,8.80826004]
[1773642653299,6.92286157,2266.6,2265.7,8.80826004]
[1773642656602,6.92286157,2266.6,2265.8,7.18528129]
[1773642657401,7.41242667,2266.9,2266.2,7.18528129]
[1773642658205,7.41242667,2267.4,2266.4,7.18528129]
[1773642658502,7.41242667,2267.2,2266.4,7.18528129]
[1773642659305,7.41242667,2267.2,2266.4,8.15893463]
[1773642659602,7.41242667,2267.2,2266.7,7.18528129]
[1773642661102,7.41242667,2267.4,2266.7,7.18528129]
[1773642661503,7.41777837,2267.5,2266.7,7.18528129]
[1773642663706,7.41242667,2268.1,2267.3,7.18528129]
[1773642664805,7.41651963,2268.1,2267.3,7.18883116]
[1773642665202,8.39017297,2268.1,2267.3,0.00354987]
[1773642665905,7.41651963,2268.1,2267.3,0.00354987]
[1773642666106,7.41651963,2268.1,2267.3,7.18883116]
[1773642668701,7.41242667,2268.7,2267.8,7.18528129]
[1773642668908,7.407127,2268.7,2268.1,7.18528129]
[1773642669110,7.41242667,2269.2,2268.1,7.18528129]
[1773642669708,7.41641746,2269.2,2268.1,7.18528129]
[1773642670708,7.41641746,2269.2,2268.3,7.18528129]
[1773642673915,7.41641746,2269.2,2268.5,7.18528129]
[1773642674610,0.00399079,2269.2,2268.5,7.18528129]
[1773642674816,7.41242667,2269.5,2268.8,7.18528129]
[1773642675917,7.41709006,2269.5,2268.8,7.18528129]
[1773642676620,0.00466339,2269.5,2268.8,7.18528129]
[1773642678224,7.41242667,2269.8,2269.1,7.18528129]
[1773642678424,7.41242667,2270.3,2269.1,7.18528129]
[1773642679222,5.41750397,2270.3,2269.1,7.19036832]
[1773642680028,3.41750397,2270.3,2269.1,7.19036832]
[1773642680229,1.44040397,2270.3,2269.1,7.19036832]
[1773642682324,6.36529754,2270.2,2269.3,7.46961127]
[1773642685128,6.36529754,2270.2,2269.1,7.4746983]
[1773642685529,5.81727342,2269.9,2269.1,0.00508703]
[1773642685720,5.81727342,2269.7,2269.0,7.46961127]
[1773642686729,5.81727342,2269.7,2269.0,7.47288657]
[1773642687742,5.78403074,2269.6,2268.8,7.46961127]
[1773642688638,5.78403074,2269.6,2268.8,7.47281033]
[1773642690545,5.49208447,2269.3,2268.6,7.46961127]
[1773642690843,5.49208447,2269.3,2268.1,7.46961127]
[1773642691645,5.49208447,2269.3,2268.1,7.47296083]
[1773642694847,5.49208447,2269.3,2268.6,7.46961127]
[1773642696148,6.31962087,2269.2,2268.6,7.46961127]
[1773642696852,5.34832223,2269.2,2268.6,7.46961127]
[1773642697046,5.34832223,2269.2,2268.2,7.46961127]
[1773642702250,11.82723032,2269.5,2268.2,7.46961127]
[1773642702450,10.84932859,2269.4,2268.2,7.46961127]
[1773642702643,10.83348845,2269.3,2268.2,7.46961127]
[1773642702843,5.18672546,2269.3,2268.2,7.46961127]
[1773642706052,5.64692193,2269.2,2268.2,7.46961127]
[1773642706255,5.13197031,2269.1,2268.2,7.46961127]
[1773642708049,5.09976703,2269.4,2268.2,7.46961127]
[1773642708245,5.64778549,2269.3,2268.2,7.46961127]
[1773642708656,5.08431273,2269.2,2268.2,7.46961127]
[1773642712647,4.98616488,2269.4,2268.4,7.38452423]
[1773642712853,5.65200601,2269.3,2268.4,7.38452423]
[1773642713455,4.65822184,2269.7,2268.6,7.38452423]
[1773642713655,10.25818548,2269.6,2268.6,7.38452423]
[1773642713956,4.65822184,2269.6,2268.6,7.38452423]
[1773642715957,4.62380344,2269.8,2268.6,7.38452423]
[1773642716159,10.20042905,2269.7,2268.6,7.38452423]
[1773642716359,5.57662561,2269.6,2268.6,7.38452423]
[1773642716559,10.1855039,2269.6,2268.6,7.38452423]
[1773642716760,4.60887829,2269.8,2268.6,7.38452423]
[1773642716959,10.18536825,2269.7,2268.6,7.38452423]
[1773642717158,5.57659729,2269.6,2268.6,7.38452423]
[1773642717360,10.18536825,2269.6,2268.6,7.38452423]
[1773642717658,4.60877096,2269.6,2268.6,7.38452423]
[1773642718763,4.57831466,2270.0,2269.3,0.97059978]
[1773642718960,0.97059978,2270.2,2269.4,7.26144859]
[1773642718961,4.57831466,2269.8,2269.4,7.26144859]
[1773642721060,4.43615388,2269.5,2268.6,7.26144859]
[1773642721261,5.40675366,2269.3,2268.6,7.26144859]
[1773642721960,4.43615388,2269.3,2268.6,7.26144859]
[1773642722858,4.49671699,2269.7,2268.6,7.26144859]
[1773642723160,4.56462427,2269.5,2268.6,7.26144859]
[1773642724260,4.54376314,2269.3,2268.6,7.26144859]
[1773642725357,4.50931718,2269.1,2268.2,7.26144859]
[1773642728664,4.45096618,2268.9,2268.2,7.26144859]
[1773642730559,5.24405827,2269.3,2268.0,7.26144859]
[1773642730560,4.42223934,2268.7,2268.0,7.26144859]
[1773642731565,4.42744575,2268.7,2268.0,7.26593967]
[1773642732163,4.41844889,2269.2,2268.0,7.26593967]
[1773642732364,4.41844889,2269.0,2268.0,7.26593967]
[1773642733260,4.42332142,2269.0,2268.0,7.26593967]
[1773642738266,0.00487253,2269.0,2268.0,7.26593967]
[1773642738866,4.38190395,2269.0,2268.0,7.26593967]
[1773642744275,0.00487253,2269.0,2268.0,7.26593967]
[1773642744670,4.24581524,2269.0,2268.0,7.26593967]
[1773642744872,4.24581524,2269.0,2268.0,8.23744801]
[1773642747672,4.24581524,2269.0,2268.0,7.26593967]
[1773642753280,9.67375412,2268.9,2268.0,7.26593967]
[1773642753474,4.12079162,2268.9,2268.0,7.26593967]
[1773642755876,0.00487253,2269.0,2268.0,7.26593967]
[1773642755877,4.07758794,2268.7,2268.0,7.26593967]
[1773642757282,4.04482563,2268.9,2268.0,7.26593967]
[1773642757477,5.56204955,2268.8,2268.0,7.26593967]
[1773642758679,9.51567561,2268.8,2268.0,7.26593967]
[1773642758879,3.95362606,2268.8,2268.0,7.26593967]
[1773642760081,0.00487253,2269.0,2268.0,7.26593967]
[1773642760278,5.56716764,2269.0,2268.0,7.26593967]
[1773642760483,5.56716764,2269.0,2268.3,7.18110147]
[1773642761184,7.31852243,2269.5,2268.6,7.18110147]
[1773642762285,7.32380689,2269.5,2268.6,7.18110147]
[1773642771491,7.31852243,2269.2,2268.2,6.93541845]
[1773642771696,7.31852243,2269.2,2268.3,7.18110147]
[1773642777402,6.89713909,2269.0,2268.3,7.18110147]
[1773642779902,6.89713909,2269.0,2268.1,7.11091224]
[1773642790203,0.97150834,2269.1,2268.1,7.11091224]
[1773642790608,6.89713909,2269.0,2268.1,7.11091224]
[1773642791109,6.89713909,2268.9,2268.1,7.11091224]
[1773642796615,6.89713909,2268.5,2268.0,0.00449108]
[1773642796815,6.89713909,2268.2,2267.8,7.11091224]
[1773642797418,6.89713909,2268.5,2267.8,7.11091224]
[1773642797713,7.86943704,2268.4,2267.8,7.11505587]
[1773642799719,6.89713909,2268.4,2267.8,7.11505587]
[1773642800212,6.89713909,2268.2,2267.8,0.00414363]
[1773642800418,7.86943704,2267.9,2267.2,7.11091224]
[1773642800720,6.89713909,2267.9,2267.2,7.11091224]
[1773642801316,7.86943704,2267.8,2267.2,7.11570167]
[1773642802020,6.90250257,2267.9,2267.4,7.11091224]
[1773642802221,0.00536348,2267.9,2267.7,6.81475592]
[1773642802418,6.83350827,2268.3,2267.7,6.81475592]
[1773642803518,6.83827864,2268.3,2267.7,6.81475592]
[1773642803917,6.83350827,2268.1,2267.4,6.81475592]
[1773642804923,7.80580622,2267.8,2267.3,6.81475592]
[1773642805122,6.83350827,2267.8,2267.3,6.81475592]
[1773642807914,6.83350827,2268.2,2267.5,6.81475592]
[1773642808521,6.83827864,2268.3,2267.5,6.81475592]
[1773642808722,6.83827864,2268.3,2267.7,6.81475592]
[1773642808923,0.00477037,2268.3,2267.9,6.81475592]
[1773642809126,0.00477037,2268.3,2268.1,6.81475592]
[1773642809321,6.83350827,2268.7,2268.1,6.81475592]
[1773642810220,6.83914089,2268.7,2268.1,6.81475592]
[1773642812726,6.83350827,2268.5,2267.9,6.81475592]
[1773642814624,6.83350827,2268.5,2267.7,6.81475592]
[1773642814924,7.80580622,2268.5,2267.7,6.81475592]
[1773642820336,6.83350827,2268.2,2267.7,6.81475592]
[1773642820533,6.83350827,2268.2,2267.5,6.81475592]
[1773642820735,6.83350827,2268.0,2267.3,6.81475592]
[1773642821534,7.80580622,2268.6,2267.7,7.78705387]
[1773642821734,7.80580622,2268.6,2267.7,6.81475592]
[1773642821935,6.83350827,2268.3,2267.7,6.81475592]
[1773642823438,6.83350827,2268.3,2267.5,0.97229795]
[1773642823439,6.83350827,2268.1,2267.4,6.81475592]
[1773642829442,6.83350827,2268.2,2267.4,6.81475592]
[1773642829642,6.83350827,2268.6,2267.4,6.81475592]
[1773642829840,5.14486627,2268.5,2267.4,6.81475592]
[1773642830041,6.83350827,2268.4,2267.4,6.81475592]
[1773642834357,6.83350827,2268.4,2267.2,6.75810186]
[1773642834358,6.33873065,2268.0,2267.2,6.75810186]
[1773642835351,6.33873065,2268.0,2267.2,0.00478943]
[1773642836753,6.33873065,2268.0,2267.2,6.94121631]
[1773642837561,6.4535812,2267.8,2267.2,6.94121631]
[1773642844166,6.4535812,2267.8,2267.2,0.00478943]
[1773642844365,6.4535812,2267.6,2266.8,6.93642688]
[1773642844665,6.4535812,2267.4,2266.4,6.93642688]
[1773642845164,6.4535812,2267.2,2266.4,6.93642688]
[1773642845365,6.4535812,2267.2,2266.4,6.94147217]
[1773642846857,7.42682461,2267.2,2266.4,6.94147217]
[1773642848863,7.42682461,2267.0,2266.4,6.94147217]
[1773642849069,6.4535812,2266.8,2266.4,6.94147217]
[1773642851559,6.4535812,2266.6,2266.0,6.93642688]
[1773642851764,7.42682461,2266.5,2266.0,6.93642688]
[1773642852059,6.4535812,2266.5,2266.0,6.93642688]
[1773642852662,6.4535812,2266.5,2266.0,6.94163846]
[1773642855970,7.42682461,2266.5,2266.0,6.94163846]
[1773642856371,6.25809653,2266.5,2266.1,6.93642688]
[1773642856666,6.25809653,2266.5,2266.1,5.97207964]
[1773642856860,1.19396191,2267.0,2264.9,0.97389589]
[1773642856861,6.4535812,2266.1,2264.9,0.97389589]
[1773642857062,6.4535812,2266.1,2265.0,6.93642688]
[1773642857271,6.4535812,2266.1,2265.0,6.94143668]
[1773642858773,6.4535812,2265.9,2265.0,6.94143668]
[1773642859169,6.4535812,2265.8,2265.0,6.94143668]
[1773642862475,10.21978321,2265.6,2264.2,9.9726882]
[1773642863377,10.21978321,2265.6,2264.2,9.97770898]
[1773642863568,10.21978321,2265.4,2264.2,9.97770898]
[1773642863769,10.2241855,2265.4,2264.3,9.9726882]
[1773642864871,10.21978321,2265.2,2264.3,9.9726882]
[1773642865073,10.21978321,2265.2,2264.2,0.00502078]
[1773642865074,10.21978321,2265.0,2264.2,9.97770898]
[1773642865376,10.21978321,2265.0,2264.2,0.00502078]
[1773642866678,10.21978321,2265.0,2264.2,9.97770898]
[1773642870671,10.44050321,2265.2,2264.2,9.97770898]
[1773642870875,0.22072,2265.2,2264.2,9.97770898]
[1773642871677,0.22072,2265.2,2264.4,9.9726882]
[1773642871879,10.2241855,2265.4,2264.4,9.9726882]
[1773642872274,0.00440229,2265.4,2264.4,9.9726882]
[1773642872785,10.2241855,2265.4,2264.4,9.9726882]
[1773642875181,0.00440229,2265.4,2264.4,9.9726882]
[1773642875984,10.21978321,2265.9,2264.6,9.9726882]
[1773642876184,0.2206,2266.4,2264.6,9.9726882]
[1773642876185,10.21978321,2266.3,2264.6,9.9726882]
[1773642876385,10.21978321,2266.1,2264.8,9.9726882]
[1773642876582,10.21978321,2266.1,2265.0,9.9726882]
[1773642876982,10.22330467,2266.1,2265.0,9.9726882]
[1773642881686,10.21978321,2265.9,2265.0,9.9726882]
[1773642881886,10.21978321,2265.7,2264.5,9.9726882]
[1773642882186,10.21978321,2265.7,2264.6,9.37259791]
[1773642885195,10.12492923,2265.5,2264.6,9.37259791]
[1773642886393,10.12492923,2265.3,2264.2,9.37761869]
[1773642886789,10.12492923,2265.3,2264.4,9.37259791]
[1773642887986,10.12492923,2265.1,2264.2,9.37761869]
[1773642888189,6.2096847,2265.0,2264.2,9.37761869]
[1773642888390,10.12492923,2264.9,2264.2,0.00502078]
[1773642888594,10.12492923,2264.7,2264.2,0.00502078]
[1773642888791,10.12492923,2264.7,2263.8,9.37259791]
[1773642888991,10.12492923,2264.5,2263.8,9.37259791]
[1773642889895,10.13030407,2264.5,2263.8,9.37683909]
[1773642892995,10.13030407,2264.5,2263.2,9.002491]
[1773642893196,10.13030407,2264.5,2263.4,9.002491]
[1773642893400,10.13030407,2264.5,2263.5,9.002491]
[1773642894103,10.13030407,2264.5,2263.6,4.72112147]
[1773642894303,10.13030407,2264.5,2263.7,9.002491]
[1773642895404,10.13030407,2264.5,2263.8,9.43118545]
[1773642899400,10.13030407,2264.5,2263.9,9.43118545]
[1773642901912,9.08482159,2264.7,2263.9,9.43118545]
[1773642903010,9.08806108,2264.7,2263.8,10.737]
[1773642903216,9.08806108,2264.7,2263.8,9.43118545]
[1773642905618,9.08806108,2264.7,2263.6,9.43118545]
[1773642910215,6.13047998,2264.6,2263.6,9.43118545]
[1773642910417,9.08482159,2264.5,2263.6,9.43118545]
[1773642912920,9.08482159,2264.5,2263.7,9.43118545]
[1773642917215,6.15409349,2264.4,2263.7,9.43118545]
[1773642917419,15.23891508,2264.4,2263.7,9.43118545]
[1773642917623,9.08482159,2264.4,2263.7,9.43118545]
[1773642918524,9.08482159,2264.4,2263.8,9.43118545]
[1773642920423,9.08482159,2264.2,2263.6,20.34218545]
[1773642920827,9.08482159,2264.2,2263.7,9.43118545]
[1773642921618,9.08482159,2264.6,2263.7,9.43118545]
[1773642921822,6.15759924,2264.5,2263.7,9.43118545]
[1773642922022,15.24242083,2264.5,2263.7,9.43118545]
[1773642922222,9.08482159,2264.5,2263.7,9.43118545]
[1773642924424,8.97999255,2264.6,2263.7,9.43118545]
[1773642924624,6.07739622,2264.5,2263.7,9.43118545]
[1773642925119,6.07739622,2264.5,2263.8,1.79712319]
[1773642925329,6.07739622,2264.5,2263.9,8.71533109]
[1773642925832,8.97999255,2264.6,2263.9,8.71533109]
[1773642926033,8.97999255,2264.6,2264.1,8.71533109]
[1773642926229,8.98323204,2264.7,2264.1,8.71533109]
[1773642928624,8.98323204,2264.7,2263.5,0.00415219]
[1773642928625,8.98323204,2264.7,2263.9,8.71533109]
[1773642928931,10.78035523,2264.7,2263.9,10.991]
[1773642929126,10.78035523,2264.7,2263.9,19.70833109]
[1773642929635,6.00323333,2264.6,2263.9,19.71033109]
[1773642929836,8.97999255,2264.5,2263.9,19.71033109]
[1773642930030,10.77711574,2264.5,2263.7,8.71533109]
[1773642932236,8.97999255,2264.3,2263.7,8.71533109]
[1773642934433,8.97999255,2264.5,2263.7,8.71533109]
[1773642934634,8.97999255,2264.5,2263.9,8.71533109]
[1773642935030,8.98323204,2264.7,2263.9,8.71533109]
[1773642935236,8.97999255,2264.6,2264.1,8.71533109]
[1773642935833,8.98323204,2264.7,2264.1,8.71533109]
[1773642936633,19.80899255,2264.9,2264.3,8.71533109]
[1773642936934,8.97999255,2265.2,2264.3,8.71533109]
[1773642937137,5.89810559,2265.1,2264.5,8.71533109]
[1773642937330,8.97999255,2265.2,2264.5,8.71533109]
[1773642937838,8.98478444,2265.2,2264.6,8.71533109]
[1773642938638,10.78190763,2265.2,2264.6,8.71533109]
[1773642938838,10.78190763,2265.2,2264.5,19.73433109]
[1773642939432,10.78190763,2265.2,2264.5,8.71533109]
[1773642940441,8.98478444,2265.2,2264.5,8.71533109]
[1773642941840,0.00479189,2265.2,2264.5,8.71533109]
[1773642942041,0.00479189,2265.2,2264.7,8.71533109]
[1773642942541,8.97999255,2265.8,2264.9,8.71533109]
[1773642942737,14.83892753,2265.7,2264.9,19.75733109]
[1773642942941,14.83892753,2265.7,2265.0,8.71533109]
[1773642942942,8.97999255,2265.7,2265.0,8.71533109]
[1773642943541,8.9842759,2265.7,2265.0,8.71533109]
[1773642943842,10.78139909,2265.7,2265.0,19.76333109]
[1773642944342,10.78139909,2265.7,2265.0,8.71533109]
[1773642944545,10.78139909,2265.7,2264.9,11.052]
[1773642944747,8.97999255,2265.5,2264.9,19.76733109]
[1773642947749,8.9842759,2265.7,2265.0,8.71533109]
[1773642950048,8.9842759,2265.7,2264.7,8.71533109]
[1773642952047,8.77746848,2265.5,2264.5,8.31455462]
[1773642952246,8.77746848,2265.5,2263.5,2.79776095]
[1773642952247,8.77746848,2265.4,2264.2,8.31455462]
[1773642959154,8.67305354,2265.3,2264.2,8.31455462]
[1773642962255,5.85363775,2265.2,2264.2,8.31455462]
[1773642962458,8.67305354,2265.1,2264.2,8.31455462]
[1773642967268,10.46989688,2265.1,2264.2,8.31455462]
[1773642967860,8.67305354,2264.8,2264.2,8.31455462]
[1773642971371,8.67305354,2265.0,2264.2,10.11139796]
[1773642971670,8.67305354,2265.2,2264.5,8.23454772]
[1773642977675,8.67305354,2265.5,2264.7,8.23454772]
[1773642977876,10.46989688,2265.1,2264.5,8.23454772]
[1773642978077,8.67305354,2265.1,2264.5,8.23454772]
[1773642978277,8.67305354,2265.4,2264.5,8.23454772]
[1773642978567,8.67305354,2265.2,2264.5,8.23454772]
[1773642983176,8.67305354,2265.2,2264.1,8.65925303]
[1773642983374,8.67305354,2265.2,2264.3,8.65925303]
[1773642983375,5.85246964,2265.1,2264.3,8.65925303]
[1773642983580,7.87781653,2265.0,2264.3,8.65925303]
[1773642984887,7.87781653,2265.0,2264.2,8.65925303]
[1773642989881,7.87781653,2264.8,2264.1,8.65925303]
[1773642991787,7.87781653,2265.2,2264.1,8.65925303]
[1773642991987,7.87781653,2265.0,2264.1,8.65925303]
[1773642992592,7.87781653,2265.0,2264.2,8.65925303]
[1773643001403,7.87781653,2265.0,2264.3,8.65925303]
[1773643002193,10.883,2265.3,2264.3,8.65925303]
[1773643002194,7.87781653,2265.2,2264.3,8.65925303]
[1773643002395,7.87781653,2265.4,2264.3,8.65925303]
[1773643006509,7.87781653,2265.4,2264.5,8.65925303]
[1773643007411,7.87781653,2265.4,2264.5,10.47885618]
[1773643007611,7.87781653,2265.6,2264.5,10.47885618]
[1773643012616,7.87781653,2265.6,2264.8,1.81960315]
[1773643012810,7.87781653,2265.6,2264.9,8.11100175]
[1773643013714,7.73547951,2265.9,2264.9,8.11100175]
[1773643013918,7.73547951,2265.9,2265.1,8.11100175]
[1773643014613,7.73948779,2265.9,2265.1,8.11517129]
[1773643016414,7.73948779,2265.9,2265.3,7.76305679]
[1773643020011,0.00400828,2265.9,2265.3,7.76305679]
[1773643020216,8.18748087,2266.0,2265.3,7.76305679]
[1773643021226,8.18748087,2266.0,2265.5,7.76305679]
[1773643021227,8.1907367,2266.0,2265.5,7.76305679]
[1773643026525,8.1907367,2266.0,2265.4,11.158]
[1773643026716,8.1907367,2266.0,2265.5,7.76305679]
[1773643027023,8.1907367,2266.0,2265.4,18.90605679]
[1773643028326,8.1907367,2266.0,2265.1,18.91222633]
[1773643030823,8.1907367,2266.0,2265.1,7.76722633]
[1773643032128,8.18748087,2265.8,2265.1,0.00416954]
[1773643033526,8.18748087,2265.8,2265.1,7.76722633]
[1773643035930,8.18748087,2266.2,2265.3,7.76305679]
[1773643036132,8.18748087,2266.2,2265.6,7.76305679]
[1773643037034,8.19320544,2266.2,2265.6,7.76305679]
[1773643039333,8.18748087,2266.9,2265.8,9.58136931]
[1773643039533,5.70074424,2266.8,2266.0,7.76305679]
[1773643039733,8.18748087,2266.7,2266.0,7.76305679]
[1773643040334,8.19240612,2266.7,2266.0,7.76305679]
[1773643041734,8.19240612,2266.7,2266.0,18.92405679]
[1773643042539,8.19240612,2266.7,2266.1,7.47524109]
[1773643051447,7.85894148,2266.5,2265.8,7.47524109]
[1773643051641,7.85894148,2266.5,2265.5,1.79389819]
[1773643051843,7.85894148,2266.5,2265.8,11.184]
[1773643052345,7.85894148,2266.5,2265.8,18.65924109]
[1773643053746,7.85894148,2266.5,2265.9,9.26913928]
[1773643054147,7.85894148,2266.5,2265.9,7.47524109]
[1773643062751,7.85894148,2266.5,2265.6,1.79389819]
[1773643063048,7.85894148,2266.5,2265.8,7.47524109]
[1773643076167,7.85894148,2266.5,2265.9,7.47601353]
[1773643079273,7.69821137,2266.7,2265.9,9.26991172]
[1773643080970,7.69821137,2266.7,2265.8,11.306]
[1773643080971,7.69328612,2267.2,2266.4,7.47601353]
[1773643081467,7.69328612,2267.2,2266.6,7.47601353]
[1773643081875,7.69693701,2267.2,2266.6,7.47601353]
[1773643082069,9.4908352,2267.2,2266.6,7.47601353]
[1773643083877,7.69693701,2267.2,2266.6,7.47601353]
[1773643084781,7.69328612,2266.7,2265.8,7.47601353]
[1773643084978,7.69328612,2266.7,2265.9,7.47601353]
[1773643085178,7.69328612,2266.7,2265.9,18.80901353]
[1773643085875,7.69328612,2266.7,2266.0,7.47601353]
[1773643086072,7.69328612,2266.7,2266.1,9.26991172]
[1773643086279,7.69328612,2266.7,2266.1,7.47601353]
[1773643087874,9.48718431,2266.7,2266.1,7.47601353]
[1773643088175,9.48718431,2266.7,2265.9,7.47601353]
[1773643095378,7.69328612,2266.7,2265.9,7.47601353]
[1773643095686,7.69328612,2266.7,2265.9,9.26991172]
[1773643095888,9.48718431,2266.7,2265.9,7.47601353]
[1773643097792,7.69328612,2266.4,2265.9,7.47601353]
[1773643098695,7.69328612,2266.0,2265.6,7.47601353]
[1773643099395,7.69328612,2266.2,2265.6,7.47601353]
[1773643102291,7.08497565,2266.6,2265.9,7.29310918]
[1773643106605,7.08497565,2266.9,2265.9,7.29310918]
[1773643107402,7.08497565,2266.9,2265.7,7.29310918]
[1773643107608,7.08497565,2266.6,2265.7,7.29310918]
[1773643109404,7.08497565,2266.6,2265.7,9.11059218]
[1773643110710,7.08497565,2266.6,2265.7,7.29310918]
[1773643113710,7.08497565,2266.6,2265.7,9.11059218]
[1773643119910,7.08497565,2266.9,2265.7,9.11059218]
[1773643123012,7.08497565,2266.9,2265.8,7.29310918]
[1773643123218,7.08497565,2266.9,2265.9,7.29310918]